[Event "*** Titled Tuesday Blitz"]
[Site "Chess.com"]
[Date "2021.02.16"]
[Round "4"]
[White "Supernotar"]
[Black "beautroll"]
[Result "1-0"]
[WhiteElo "2767"]
[BlackElo "2474"]
[TimeControl "180+1"]
[EndTime "10:40:58 PST"]
[Termination "Supernotar won by resignation"]

1. d4 {[%clk 0:03:00.9]} 1... Nf6 {[%clk 0:02:59.6]} 2. c4 {[%clk 0:03:00.8]}
2... g6 {[%clk 0:03:00]} 3. Nc3 {[%clk 0:03:00.3]} 3... Bg7 {[%clk 0:03:00.2]}
4. e4 {[%clk 0:03:00.7]} 4... d6 {[%clk 0:03:00.3]} 5. Be2 {[%clk 0:03:01.3]}
5... O-O {[%clk 0:03:00.4]} 6. Nf3 {[%clk 0:03:01.9]} 6... e5 {[%clk 0:02:59.5]}
7. O-O {[%clk 0:03:02.1]} 7... Nc6 {[%clk 0:02:59.5]} 8. d5 {[%clk 0:03:02.4]}
8... Ne7 {[%clk 0:02:59.8]} 9. Ne1 {[%clk 0:03:02.9]} 9... Ne8 {[%clk
0:02:58.8]} 10. Be3 {[%clk 0:03:03]} 10... f5 {[%clk 0:02:58.4]} 11. f3 {[%clk
0:03:03.5]} 11... f4 {[%clk 0:02:57.9]} 12. Bf2 {[%clk 0:03:04]} 12... h5 {[%clk
0:02:56.3]} 13. c5 {[%clk 0:03:04.4]} 13... g5 {[%clk 0:02:53.5]} 14. a4 {[%clk
0:03:04.6]} 14... Ng6 {[%clk 0:02:49.3]} 15. a5 {[%clk 0:03:04.8]} 15... a6
{[%clk 0:02:41]} 16. cxd6 {[%clk 0:03:04.9]} 16... Nxd6 {[%clk 0:02:41.5]} 17.
Nd3 {[%clk 0:03:03.9]} 17... b6 {[%clk 0:01:51.8]} 18. Nb4 {[%clk 0:02:54.8]}
18... b5 {[%clk 0:01:47.8]} 19. Nc6 {[%clk 0:02:54.5]} 19... Qf6 {[%clk
0:01:46.5]} 20. Rc1 {[%clk 0:02:50.2]} 20... b4 {[%clk 0:01:39.5]} 21. Na4
{[%clk 0:02:46.8]} 21... g4 {[%clk 0:01:39.5]} 22. Kh1 {[%clk 0:02:42.9]} 22...
g3 {[%clk 0:01:37.7]} 23. Bg1 {[%clk 0:02:43.1]} 23... Nh4 {[%clk 0:01:21.1]}
24. Re1 {[%clk 0:02:35.3]} 24... Qg5 {[%clk 0:01:13.3]} 25. Bf1 {[%clk
0:02:32.3]} 25... Bg4 {[%clk 0:00:44]} 26. Qe2 {[%clk 0:02:18.3]} 26... Bh6
{[%clk 0:00:28.4]} 27. Nc5 {[%clk 0:02:15.2]} 27... Rf7 {[%clk 0:00:25.8]} 28.
Ne6 {[%clk 0:02:13.1]} 28... Qg6 {[%clk 0:00:19.2]} 29. h3 {[%clk 0:02:00]}
29... Bxe6 {[%clk 0:00:17.3]} 30. dxe6 {[%clk 0:01:59.9]} 30... Qxe6 {[%clk
0:00:18.2]} 31. Nxb4 {[%clk 0:01:57.4]} 31... Kh8 {[%clk 0:00:15.6]} 32. Nd5
{[%clk 0:01:57.2]} 32... Nb5 {[%clk 0:00:12.1]} 33. Rc4 {[%clk 0:01:45.6]} 33...
Rg7 {[%clk 0:00:11.5]} 34. Rec1 {[%clk 0:01:37.5]} 34... Qd6 {[%clk 0:00:06.4]}
35. Rc6 {[%clk 0:01:35.3]} 35... Qd8 {[%clk 0:00:06.3]} 36. Rxh6+ {[%clk
0:01:35.1]} 36... Kg8 {[%clk 0:00:06.9]} 37. Nf6+ {[%clk 0:01:31.2]} 37... Kf7
{[%clk 0:00:06.3]} 38. Qc4+ {[%clk 0:01:30.3]} 38... Ke7 {[%clk 0:00:05.3]} 39.
Bc5+ {[%clk 0:01:30]} 1-0

[Event "*** Titled Tuesday Blitz"]
[Site "Chess.com"]
[Date "2021.02.16"]
[Round "4"]
[White "xamax2000"]
[Black "Angel_Hranitel_37"]
[Result "0-1"]
[WhiteElo "2654"]
[BlackElo "2498"]
[TimeControl "180+1"]
[EndTime "10:41:00 PST"]
[Termination "Angel_Hranitel_37 won by resignation"]

1. d4 {[%clk 0:02:54.2]} 1... Nf6 {[%clk 0:02:59.5]} 2. c4 {[%clk 0:02:48.6]}
2... g6 {[%clk 0:02:59.6]} 3. Nc3 {[%clk 0:02:47.8]} 3... Bg7 {[%clk 0:02:59.8]}
4. e4 {[%clk 0:02:47.6]} 4... O-O {[%clk 0:03:00.7]} 5. Be2 {[%clk 0:02:48]}
5... d6 {[%clk 0:03:00.9]} 6. Be3 {[%clk 0:02:48.6]} 6... e5 {[%clk 0:03:00.4]}
7. d5 {[%clk 0:02:49.1]} 7... Na6 {[%clk 0:02:58.8]} 8. g4 {[%clk 0:02:45.2]}
8... Nc5 {[%clk 0:02:57.5]} 9. f3 {[%clk 0:02:45.6]} 9... h5 {[%clk 0:02:58.3]}
10. g5 {[%clk 0:02:44]} 10... Nh7 {[%clk 0:02:58.9]} 11. h4 {[%clk 0:02:44.1]}
11... f6 {[%clk 0:02:58.2]} 12. gxf6 {[%clk 0:02:43]} 12... Bxf6 {[%clk
0:02:58.6]} 13. Bf2 {[%clk 0:02:43.6]} 13... Be7 {[%clk 0:02:57.4]} 14. Kd2
{[%clk 0:02:43.1]} 14... Rf4 {[%clk 0:02:54.9]} 15. Qe1 {[%clk 0:02:43]} 15...
Bd7 {[%clk 0:02:38.6]} 16. Kc2 {[%clk 0:02:23.9]} 16... Na4 {[%clk 0:02:38.2]}
17. Nxa4 {[%clk 0:02:17.6]} 17... Bxa4+ {[%clk 0:02:39.1]} 18. b3 {[%clk
0:02:18.1]} 18... Bd7 {[%clk 0:02:39.9]} 19. Rd1 {[%clk 0:02:09.9]} 19... b5
{[%clk 0:02:18.5]} 20. cxb5 {[%clk 0:01:51.2]} 20... Qe8 {[%clk 0:01:56.4]} 21.
Qa5 {[%clk 0:01:21]} 21... Bd8 {[%clk 0:00:38.6]} 22. Qa6 {[%clk 0:01:16.6]}
22... Nf6 {[%clk 0:00:36.3]} 23. Bg3 {[%clk 0:01:13.2]} 23... Nxe4 {[%clk
0:00:35.9]} 24. fxe4 {[%clk 0:01:06.3]} 24... Rxe4 {[%clk 0:00:36.3]} 25. Bd3
{[%clk 0:00:51.5]} 25... Re3 {[%clk 0:00:36.2]} 26. Bf2 {[%clk 0:00:50.1]} 26...
Rxd3 {[%clk 0:00:36]} 27. Kxd3 {[%clk 0:00:45.8]} 27... Bxb5+ {[%clk 0:00:36.5]}
28. Qxb5 {[%clk 0:00:40.2]} 28... Qxb5+ {[%clk 0:00:37.4]} 29. Kc2 {[%clk
0:00:38.6]} 29... c6 {[%clk 0:00:28.7]} 30. dxc6 {[%clk 0:00:36.3]} 30... Qxc6+
{[%clk 0:00:29.6]} 0-1

[Event "*** Titled Tuesday Blitz"]
[Site "Chess.com"]
[Date "2021.02.16"]
[Round "4"]
[White "dozer80"]
[Black "KubaGepard"]
[Result "1-0"]
[WhiteElo "2618"]
[BlackElo "2395"]
[TimeControl "180+1"]
[EndTime "10:41:00 PST"]
[Termination "dozer80 won by resignation"]

1. e4 {[%clk 0:03:00.9]} 1... e5 {[%clk 0:02:40.7]} 2. Nf3 {[%clk 0:02:59.6]}
2... Nc6 {[%clk 0:02:41.1]} 3. Bb5 {[%clk 0:02:59.5]} 3... a6 {[%clk 0:02:40.7]}
4. Ba4 {[%clk 0:02:59.7]} 4... Nf6 {[%clk 0:02:40.7]} 5. O-O {[%clk 0:03:00.2]}
5... Be7 {[%clk 0:02:41.3]} 6. Bxc6 {[%clk 0:03:00]} 6... dxc6 {[%clk
0:02:39.9]} 7. d3 {[%clk 0:03:00.9]} 7... Bd6 {[%clk 0:02:38.8]} 8. b3 {[%clk
0:03:00.5]} 8... Qe7 {[%clk 0:02:37]} 9. Bb2 {[%clk 0:02:59.9]} 9... O-O {[%clk
0:02:34.5]} 10. Nbd2 {[%clk 0:03:00.4]} 10... Nd7 {[%clk 0:02:33.7]} 11. Nc4
{[%clk 0:03:00.1]} 11... Re8 {[%clk 0:02:27.7]} 12. Re1 {[%clk 0:02:55.2]} 12...
f6 {[%clk 0:02:23.9]} 13. d4 {[%clk 0:02:48.9]} 13... exd4 {[%clk 0:02:19.3]}
14. Nxd4 {[%clk 0:02:49.8]} 14... Nb6 {[%clk 0:01:25.8]} 15. Nxd6 {[%clk
0:02:44.9]} 15... cxd6 {[%clk 0:01:25.2]} 16. c4 {[%clk 0:02:26.6]} 16... Be6
{[%clk 0:01:19]} 17. Qd2 {[%clk 0:02:21.1]} 17... Rad8 {[%clk 0:01:17.3]} 18.
Rad1 {[%clk 0:02:08.7]} 18... Nc8 {[%clk 0:01:15.2]} 19. f3 {[%clk 0:02:06.2]}
19... Qc7 {[%clk 0:01:13]} 20. a4 {[%clk 0:01:53]} 20... b6 {[%clk 0:01:09.3]}
21. f4 {[%clk 0:01:41.9]} 21... b5 {[%clk 0:00:59.7]} 22. axb5 {[%clk
0:01:40.3]} 22... axb5 {[%clk 0:01:00.6]} 23. cxb5 {[%clk 0:01:37.7]} 23... Na7
{[%clk 0:00:56.9]} 24. bxc6 {[%clk 0:01:36.5]} 24... Rb8 {[%clk 0:00:54.2]} 25.
Nxe6 {[%clk 0:01:31.5]} 25... Rxe6 {[%clk 0:00:53.1]} 26. Qd5 {[%clk 0:01:32.1]}
26... Qf7 {[%clk 0:00:53]} 27. Rc1 {[%clk 0:01:28.7]} 27... Rbe8 {[%clk
0:00:44.4]} 28. Bd4 {[%clk 0:01:23.7]} 28... Nc8 {[%clk 0:00:42]} 29. Bf2 {[%clk
0:01:10]} 29... g6 {[%clk 0:00:34.9]} 30. c7 {[%clk 0:01:08]} 30... Kg7 {[%clk
0:00:34.4]} 31. b4 {[%clk 0:01:04.6]} 31... R8e7 {[%clk 0:00:31]} 32. b5 {[%clk
0:01:03.2]} 32... Qe8 {[%clk 0:00:30.5]} 33. b6 {[%clk 0:01:02]} 33... Nxb6
{[%clk 0:00:29.8]} 34. Bxb6 {[%clk 0:01:01.2]} 34... Rxe4 {[%clk 0:00:25.5]} 35.
Rxe4 {[%clk 0:01:00.7]} 35... Rxe4 {[%clk 0:00:26]} 36. Qxe4 {[%clk 0:00:58]}
36... Qxe4 {[%clk 0:00:23.4]} 37. c8=Q {[%clk 0:00:58.1]} 1-0

[Event "*** Titled Tuesday Blitz"]
[Site "Chess.com"]
[Date "2021.02.16"]
[Round "4"]
[White "Twitch_ElhamBlitz05"]
[Black "AlexPapasimakopoulos"]
[Result "1-0"]
[WhiteElo "2824"]
[BlackElo "2620"]
[TimeControl "180+1"]
[EndTime "10:41:06 PST"]
[Termination "Twitch_ElhamBlitz05 won by checkmate"]

1. e4 {[%clk 0:02:54.6]} 1... e6 {[%clk 0:02:58.8]} 2. d4 {[%clk 0:02:52.3]}
2... d5 {[%clk 0:02:59.4]} 3. Nd2 {[%clk 0:02:52.7]} 3... Nf6 {[%clk 0:02:59.6]}
4. Bd3 {[%clk 0:02:52.5]} 4... c5 {[%clk 0:02:59.4]} 5. exd5 {[%clk 0:02:52.4]}
5... exd5 {[%clk 0:02:58.7]} 6. Ngf3 {[%clk 0:02:51.5]} 6... Nc6 {[%clk
0:02:58.8]} 7. dxc5 {[%clk 0:02:51.2]} 7... Bxc5 {[%clk 0:02:58.6]} 8. O-O
{[%clk 0:02:52.1]} 8... O-O {[%clk 0:02:58.8]} 9. Nb3 {[%clk 0:02:52.6]} 9...
Bb6 {[%clk 0:02:59.1]} 10. c3 {[%clk 0:02:53.1]} 10... Qd6 {[%clk 0:02:55.9]}
11. h3 {[%clk 0:02:51]} 11... Bd7 {[%clk 0:02:55.5]} 12. Nbd4 {[%clk 0:02:50.9]}
12... Rfe8 {[%clk 0:02:54.8]} 13. Be3 {[%clk 0:02:39.1]} 13... Ne4 {[%clk
0:02:54.7]} 14. Nb5 {[%clk 0:02:31.6]} 14... Qb8 {[%clk 0:02:45.4]} 15. Bxb6
{[%clk 0:02:30.8]} 15... axb6 {[%clk 0:02:46.3]} 16. Nbd4 {[%clk 0:02:31.6]}
16... Qd6 {[%clk 0:02:45.2]} 17. a3 {[%clk 0:02:30.2]} 17... Qg6 {[%clk
0:02:41.6]} 18. Kh2 {[%clk 0:02:00]} 18... Qd6+ {[%clk 0:02:39.9]} 19. Kg1
{[%clk 0:02:00.1]} 19... Qg6 {[%clk 0:02:40.5]} 20. Kh1 {[%clk 0:02:00.8]} 20...
Qh5 {[%clk 0:02:39.9]} 21. Nh2 {[%clk 0:01:54.6]} 21... Qh4 {[%clk 0:02:37.3]}
22. Kg1 {[%clk 0:01:23.6]} 22... Qg5 {[%clk 0:02:15.6]} 23. Qc1 {[%clk
0:01:19.4]} 23... Qg6 {[%clk 0:02:14.3]} 24. f3 {[%clk 0:01:01.6]} 24... Ne5
{[%clk 0:02:13.2]} 25. Bc2 {[%clk 0:00:48.7]} 25... Bxh3 {[%clk 0:02:13]} 26.
Rf2 {[%clk 0:00:49.4]} 26... f5 {[%clk 0:01:58]} 27. fxe4 {[%clk 0:00:45.5]}
27... dxe4 {[%clk 0:01:58.9]} 28. Qf4 {[%clk 0:00:34.4]} 28... e3 {[%clk
0:01:51.8]} 29. Qxe3 {[%clk 0:00:29.3]} 29... Ng4 {[%clk 0:01:50.1]} 30. Qxh3
{[%clk 0:00:23.5]} 30... Nxf2 {[%clk 0:01:49.8]} 31. Kxf2 {[%clk 0:00:24.4]}
31... Qg5 {[%clk 0:01:44.9]} 32. Nhf3 {[%clk 0:00:21.9]} 32... Qe3+ {[%clk
0:01:44.8]} 33. Kf1 {[%clk 0:00:22.5]} 33... g6 {[%clk 0:01:45.2]} 34. Re1
{[%clk 0:00:21.9]} 34... Qf4 {[%clk 0:01:43.8]} 35. Bb3+ {[%clk 0:00:14.6]}
35... Kh8 {[%clk 0:01:39.7]} 36. Ne6 {[%clk 0:00:14.1]} 36... Qd6 {[%clk
0:01:34.1]} 37. Qh4 {[%clk 0:00:11.6]} 37... Qe7 {[%clk 0:01:11.3]} 38. Qd4+
{[%clk 0:00:11.3]} 38... Kg8 {[%clk 0:01:11.7]} 39. Neg5+ {[%clk 0:00:11.2]}
39... Kf8 {[%clk 0:01:10.7]} 40. Qh8# {[%clk 0:00:10.2]} 1-0

[Event "*** Titled Tuesday Blitz"]
[Site "Chess.com"]
[Date "2021.02.16"]
[Round "4"]
[White "HouseOfDurin"]
[Black "Gabrielian_Artur"]
[Result "0-1"]
[WhiteElo "2141"]
[BlackElo "2797"]
[TimeControl "180+1"]
[EndTime "10:41:07 PST"]
[Termination "Gabrielian_Artur won on time"]

1. d4 {[%clk 0:03:00.9]} 1... Nf6 {[%clk 0:02:59.5]} 2. Bg5 {[%clk 0:03:01.5]}
2... g6 {[%clk 0:02:58.5]} 3. Bxf6 {[%clk 0:03:01.4]} 3... exf6 {[%clk
0:02:58.8]} 4. c4 {[%clk 0:03:01.8]} 4... c5 {[%clk 0:02:56.9]} 5. e3 {[%clk
0:03:00.5]} 5... Qb6 {[%clk 0:02:54.9]} 6. dxc5 {[%clk 0:02:32.4]} 6... Qxb2
{[%clk 0:02:43.4]} 7. Qd4 {[%clk 0:02:32.1]} 7... Qc1+ {[%clk 0:02:34.1]} 8. Ke2
{[%clk 0:02:32.1]} 8... Nc6 {[%clk 0:02:26.9]} 9. Qxf6 {[%clk 0:02:26.3]} 9...
Qxc4+ {[%clk 0:02:23.7]} 10. Kf3 {[%clk 0:02:05]} 10... Qxf1 {[%clk 0:02:02.9]}
11. Qxh8 {[%clk 0:02:04.3]} 11... Qd1+ {[%clk 0:02:02.9]} 12. Ne2 {[%clk
0:01:38.1]} 12... Qxh1 {[%clk 0:01:57.4]} 13. Nd2 {[%clk 0:01:38.2]} 13... Qxh2
{[%clk 0:01:56.9]} 14. Ng3 {[%clk 0:01:25.3]} 14... Qh4 {[%clk 0:01:41.8]} 15.
Rh1 {[%clk 0:01:09.8]} 15... Qe7 {[%clk 0:01:37.7]} 16. Nde4 {[%clk 0:01:04.2]}
16... b6 {[%clk 0:01:31.4]} 17. Nf6+ {[%clk 0:00:58.6]} 17... Kd8 {[%clk
0:01:31.2]} 18. Nxh7 {[%clk 0:00:58.6]} 18... Ne5+ {[%clk 0:01:26.3]} 19. Ke2
{[%clk 0:00:56.2]} 19... Ba6+ {[%clk 0:01:25.9]} 20. Kd1 {[%clk 0:00:47]} 20...
Kc7 {[%clk 0:01:25.9]} 21. Ne4 {[%clk 0:00:18]} 21... bxc5 {[%clk 0:01:16.6]}
22. Qf6 {[%clk 0:00:12.7]} 22... Qxf6 {[%clk 0:01:16]} 23. Nhxf6 {[%clk
0:00:13.6]} 23... Bc4 {[%clk 0:01:06.3]} 24. a3 {[%clk 0:00:12.4]} 24... Rb8
{[%clk 0:01:05.9]} 25. Rh7 {[%clk 0:00:09.3]} 25... Be6 {[%clk 0:00:57]} 26. f4
{[%clk 0:00:08.3]} 26... Nc4 {[%clk 0:00:57.2]} 27. Rh8 {[%clk 0:00:05.1]} 27...
Be7 {[%clk 0:00:54.4]} 28. Rxb8 {[%clk 0:00:04.5]} 28... Kxb8 {[%clk 0:00:54.6]}
29. g4 {[%clk 0:00:02]} 29... d5 {[%clk 0:00:53.8]} 0-1

[Event "*** Titled Tuesday Blitz"]
[Site "Chess.com"]
[Date "2021.02.16"]
[Round "4"]
[White "MITerryble"]
[Black "German_Bazeev"]
[Result "1-0"]
[WhiteElo "2932"]
[BlackElo "2726"]
[TimeControl "180+1"]
[EndTime "10:41:08 PST"]
[Termination "MITerryble won by resignation"]

1. d4 {[%clk 0:03:00.9]} 1... Nf6 {[%clk 0:02:41.4]} 2. Nf3 {[%clk 0:02:59.9]}
2... e6 {[%clk 0:02:41.6]} 3. c4 {[%clk 0:02:59.1]} 3... b6 {[%clk 0:02:40.7]}
4. g3 {[%clk 0:02:58.9]} 4... Ba6 {[%clk 0:02:40.7]} 5. Qa4 {[%clk 0:02:58.6]}
5... Bb7 {[%clk 0:02:38.9]} 6. Bg2 {[%clk 0:02:58.2]} 6... g6 {[%clk 0:02:39.1]}
7. O-O {[%clk 0:02:56.9]} 7... Bg7 {[%clk 0:02:38.8]} 8. Qc2 {[%clk 0:02:56]}
8... O-O {[%clk 0:02:34.7]} 9. Nc3 {[%clk 0:02:55.6]} 9... d5 {[%clk 0:02:34.1]}
10. Ne5 {[%clk 0:02:53.1]} 10... Nbd7 {[%clk 0:02:23.7]} 11. Rd1 {[%clk
0:02:52.5]} 11... c6 {[%clk 0:02:18.1]} 12. Bf4 {[%clk 0:02:44.7]} 12... Rc8
{[%clk 0:02:16]} 13. e4 {[%clk 0:02:38.7]} 13... Nh5 {[%clk 0:02:06.6]} 14. Be3
{[%clk 0:02:20.8]} 14... Nhf6 {[%clk 0:01:50.2]} 15. h3 {[%clk 0:01:43.9]} 15...
a6 {[%clk 0:01:45.8]} 16. Qb3 {[%clk 0:01:37.5]} 16... b5 {[%clk 0:01:35.7]} 17.
exd5 {[%clk 0:01:27.5]} 17... exd5 {[%clk 0:01:27.2]} 18. cxd5 {[%clk
0:01:27.3]} 18... c5 {[%clk 0:01:11.5]} 19. Nc6 {[%clk 0:01:18]} 19... Bxc6
{[%clk 0:00:55.4]} 20. dxc6 {[%clk 0:01:17.9]} 20... c4 {[%clk 0:00:56.3]} 21.
Qa3 {[%clk 0:01:18]} 21... Nb6 {[%clk 0:00:53.5]} 22. d5 {[%clk 0:01:14.3]}
22... Re8 {[%clk 0:00:52]} 23. Bc5 {[%clk 0:01:04.8]} 23... Nh5 {[%clk
0:00:16.9]} 24. Qxa6 {[%clk 0:01:01.9]} 24... Na4 {[%clk 0:00:16.7]} 25. Nxa4
{[%clk 0:00:48.5]} 25... bxa4 {[%clk 0:00:17.6]} 26. Qxc4 {[%clk 0:00:44.9]}
26... Qg5 {[%clk 0:00:16]} 27. d6 {[%clk 0:00:43.2]} 27... Nxg3 {[%clk 0:00:16]}
28. fxg3 {[%clk 0:00:41.7]} 28... Qxg3 {[%clk 0:00:16.4]} 29. Bf2 {[%clk
0:00:40.1]} 1-0

[Event "*** Titled Tuesday Blitz"]
[Site "Chess.com"]
[Date "2021.02.16"]
[Round "4"]
[White "VladimirBugayev"]
[Black "korbul"]
[Result "1-0"]
[WhiteElo "2319"]
[BlackElo "2589"]
[TimeControl "180+1"]
[EndTime "10:41:12 PST"]
[Termination "VladimirBugayev won by resignation"]

1. e4 {[%clk 0:03:00.9]} 1... c5 {[%clk 0:02:59.7]} 2. Nc3 {[%clk 0:03:01]} 2...
Nc6 {[%clk 0:02:59.2]} 3. Bb5 {[%clk 0:03:01.7]} 3... g6 {[%clk 0:02:58.4]} 4.
Bxc6 {[%clk 0:03:00.1]} 4... dxc6 {[%clk 0:02:58.5]} 5. d3 {[%clk 0:03:00.1]}
5... Bg7 {[%clk 0:02:57.7]} 6. Be3 {[%clk 0:03:00.3]} 6... b6 {[%clk 0:02:57.2]}
7. Qd2 {[%clk 0:02:58]} 7... Nf6 {[%clk 0:02:52.7]} 8. Bh6 {[%clk 0:02:53.7]}
8... O-O {[%clk 0:02:51.7]} 9. Bxg7 {[%clk 0:02:46.7]} 9... Kxg7 {[%clk
0:02:51.6]} 10. h3 {[%clk 0:02:46.4]} 10... Ne8 {[%clk 0:02:50.1]} 11. f4 {[%clk
0:02:41.6]} 11... Nc7 {[%clk 0:02:49.3]} 12. Nf3 {[%clk 0:02:39.6]} 12... Ne6
{[%clk 0:02:45.1]} 13. O-O {[%clk 0:02:38.6]} 13... Nd4 {[%clk 0:02:44.6]} 14.
Qf2 {[%clk 0:02:37.3]} 14... f6 {[%clk 0:02:25.5]} 15. Rac1 {[%clk 0:02:02.8]}
15... Bb7 {[%clk 0:02:24.2]} 16. Ne2 {[%clk 0:01:56.5]} 16... Nxf3+ {[%clk
0:02:10.2]} 17. Qxf3 {[%clk 0:01:54.7]} 17... Qd7 {[%clk 0:02:10.3]} 18. f5
{[%clk 0:01:43.3]} 18... g5 {[%clk 0:01:57.4]} 19. h4 {[%clk 0:01:42]} 19... h6
{[%clk 0:01:51.9]} 20. Kf2 {[%clk 0:01:38.1]} 20... Ba6 {[%clk 0:01:40.8]} 21.
Rh1 {[%clk 0:01:34.7]} 21... Rh8 {[%clk 0:01:40.4]} 22. Rh3 {[%clk 0:01:19.3]}
22... c4 {[%clk 0:01:30.9]} 23. d4 {[%clk 0:01:14.1]} 23... e6 {[%clk
0:01:14.5]} 24. Rch1 {[%clk 0:00:53.8]} 24... exf5 {[%clk 0:01:10.3]} 25. exf5
{[%clk 0:00:48.9]} 25... c3 {[%clk 0:00:40.9]} 26. hxg5 {[%clk 0:00:45.5]} 26...
Bxe2 {[%clk 0:00:32.5]} 27. gxf6+ {[%clk 0:00:43.6]} 27... Kf7 {[%clk
0:00:28.4]} 28. Qxe2 {[%clk 0:00:39.4]} 28... Qxd4+ {[%clk 0:00:24.6]} 29. Kf1
{[%clk 0:00:37.2]} 29... cxb2 {[%clk 0:00:19.9]} 30. Qe6+ {[%clk 0:00:33.6]}
30... Kf8 {[%clk 0:00:18.6]} 31. Qe7+ {[%clk 0:00:34.1]} 1-0

[Event "*** Titled Tuesday Blitz"]
[Site "Chess.com"]
[Date "2021.02.16"]
[Round "4"]
[White "lucachess49"]
[Black "esteban062000"]
[Result "1-0"]
[WhiteElo "2357"]
[BlackElo "2138"]
[TimeControl "180+1"]
[EndTime "10:41:12 PST"]
[Termination "lucachess49 won by resignation"]

1. d4 {[%clk 0:02:22]} 1... Nf6 {[%clk 0:02:58.3]} 2. c4 {[%clk 0:02:20.7]} 2...
e6 {[%clk 0:02:58.5]} 3. Nc3 {[%clk 0:02:21.1]} 3... Bb4 {[%clk 0:02:57.8]} 4.
e3 {[%clk 0:02:21.3]} 4... O-O {[%clk 0:02:43.1]} 5. Ne2 {[%clk 0:02:16.6]} 5...
d5 {[%clk 0:02:36.6]} 6. a3 {[%clk 0:02:15.3]} 6... Be7 {[%clk 0:02:31.2]} 7.
cxd5 {[%clk 0:01:47.5]} 7... exd5 {[%clk 0:02:25.5]} 8. Nf4 {[%clk 0:01:45.5]}
8... c6 {[%clk 0:02:17.7]} 9. Bd3 {[%clk 0:01:45.2]} 9... Na6 {[%clk 0:02:02.5]}
10. O-O {[%clk 0:01:44.9]} 10... Nc7 {[%clk 0:01:59.5]} 11. f3 {[%clk
0:01:44.3]} 11... Bd6 {[%clk 0:01:50]} 12. Bc2 {[%clk 0:01:40.6]} 12... Re8
{[%clk 0:01:38.5]} 13. e4 {[%clk 0:01:38.4]} 13... dxe4 {[%clk 0:01:28.6]} 14.
fxe4 {[%clk 0:01:37.1]} 14... Bxf4 {[%clk 0:01:27.8]} 15. Bxf4 {[%clk
0:01:35.8]} 15... Ne6 {[%clk 0:01:28.1]} 16. Be3 {[%clk 0:01:31]} 16... Nc7
{[%clk 0:01:03.4]} 17. Bg5 {[%clk 0:00:44.8]} 17... Ne6 {[%clk 0:00:55.7]} 18.
Bxf6 {[%clk 0:00:27.4]} 18... gxf6 {[%clk 0:00:56.6]} 19. d5 {[%clk 0:00:27.6]}
19... Qb6+ {[%clk 0:00:51.2]} 20. Kh1 {[%clk 0:00:25.9]} 20... Nd4 {[%clk
0:00:46.7]} 21. Na4 {[%clk 0:00:18.8]} 21... Nxc2 {[%clk 0:00:32.1]} 22. Nxb6
{[%clk 0:00:18.2]} 22... Ne3 {[%clk 0:00:30.4]} 23. Qd3 {[%clk 0:00:16.1]} 23...
Nxf1 {[%clk 0:00:30]} 24. Nxa8 {[%clk 0:00:15.8]} 24... Bd7 {[%clk 0:00:28.3]}
25. Rxf1 {[%clk 0:00:15.2]} 25... Rxa8 {[%clk 0:00:28.1]} 26. Qg3+ {[%clk
0:00:15.4]} 26... Kh8 {[%clk 0:00:27.8]} 27. Qf4 {[%clk 0:00:14.9]} 1-0

[Event "*** Titled Tuesday Blitz"]
[Site "Chess.com"]
[Date "2021.02.16"]
[Round "4"]
[White "Zenzo"]
[Black "Unknown_IM"]
[Result "1-0"]
[WhiteElo "2616"]
[BlackElo "2380"]
[TimeControl "180+1"]
[EndTime "10:41:20 PST"]
[Termination "Zenzo won on time"]

1. e4 {[%clk 0:03:00.9]} 1... e5 {[%clk 0:02:59.2]} 2. Nf3 {[%clk 0:03:00.9]}
2... Nc6 {[%clk 0:02:58.6]} 3. Bb5 {[%clk 0:03:01.3]} 3... a6 {[%clk 0:02:58.7]}
4. Ba4 {[%clk 0:03:01.6]} 4... Nf6 {[%clk 0:02:58.8]} 5. d3 {[%clk 0:03:02.1]}
5... d6 {[%clk 0:02:58.4]} 6. c3 {[%clk 0:03:01.8]} 6... g6 {[%clk 0:02:55.5]}
7. O-O {[%clk 0:03:01.9]} 7... Bg7 {[%clk 0:02:55.1]} 8. Nbd2 {[%clk 0:03:02.5]}
8... O-O {[%clk 0:02:55]} 9. Re1 {[%clk 0:02:59.7]} 9... b5 {[%clk 0:02:54.7]}
10. Bc2 {[%clk 0:02:57.9]} 10... h6 {[%clk 0:02:54.6]} 11. a4 {[%clk 0:02:57.3]}
11... Bb7 {[%clk 0:02:54.4]} 12. Nf1 {[%clk 0:02:54.3]} 12... Kh8 {[%clk
0:02:30]} 13. d4 {[%clk 0:02:50.9]} 13... Nh7 {[%clk 0:02:17.6]} 14. dxe5 {[%clk
0:02:34.9]} 14... dxe5 {[%clk 0:02:16.3]} 15. Qe2 {[%clk 0:02:32.8]} 15... b4
{[%clk 0:02:12.6]} 16. Ne3 {[%clk 0:02:31.2]} 16... bxc3 {[%clk 0:01:28]} 17.
bxc3 {[%clk 0:02:29.6]} 17... Ne7 {[%clk 0:01:26.9]} 18. Rb1 {[%clk 0:02:24.4]}
18... Qc8 {[%clk 0:01:26.1]} 19. Qc4 {[%clk 0:02:19.1]} 19... f5 {[%clk
0:01:12.9]} 20. Nd5 {[%clk 0:02:04.9]} 20... Bxd5 {[%clk 0:01:09.5]} 21. exd5
{[%clk 0:02:05.8]} 21... e4 {[%clk 0:01:03.3]} 22. Nd4 {[%clk 0:02:02.9]} 22...
Qd7 {[%clk 0:00:52.1]} 23. Ne6 {[%clk 0:01:43.2]} 23... Rfc8 {[%clk 0:00:51.3]}
24. Nxg7 {[%clk 0:01:39.9]} 24... Kxg7 {[%clk 0:00:51]} 25. Rd1 {[%clk
0:01:38.4]} 25... Nf6 {[%clk 0:00:46.5]} 26. Bb3 {[%clk 0:01:33.5]} 26... Rab8
{[%clk 0:00:43.4]} 27. Bf4 {[%clk 0:01:31.5]} 27... g5 {[%clk 0:00:13.7]} 28.
Be5 {[%clk 0:01:31]} 28... Ng6 {[%clk 0:00:13.5]} 29. Bd4 {[%clk 0:01:23]} 29...
Rd8 {[%clk 0:00:11.3]} 30. Qxa6 {[%clk 0:01:17.9]} 30... Qd6 {[%clk 0:00:07]}
31. Qxd6 {[%clk 0:01:17.1]} 31... Rxd6 {[%clk 0:00:07.9]} 32. c4 {[%clk
0:01:17.7]} 32... Ra6 {[%clk 0:00:07.2]} 33. Bc2 {[%clk 0:01:11.8]} 33... Raa8
{[%clk 0:00:04.5]} 34. Rxb8 {[%clk 0:01:09.7]} 34... Rxb8 {[%clk 0:00:04.4]} 35.
Rb1 {[%clk 0:01:10.6]} 35... Rxb1+ {[%clk 0:00:04.2]} 36. Bxb1 {[%clk
0:01:11.5]} 36... Kf7 {[%clk 0:00:04.9]} 37. a5 {[%clk 0:01:10.9]} 37... Nf4
{[%clk 0:00:05.3]} 38. Kf1 {[%clk 0:01:09.5]} 38... Nd7 {[%clk 0:00:02.1]} 39.
a6 {[%clk 0:01:08.3]} 1-0